[Event "Late-Titled-Tuesday-Blitz-October-03-2023"]
[Site "Chess.com"]
[Date "2023.10.03"]
[Round "5"]
[White "zajka-molotok"]
[Black "NMZanette"]
[Result "1-0"]
[WhiteElo "2555"]
[BlackElo "2298"]
[TimeControl "180+1"]
[EndTime "14:53:06 PDT"]
[Termination "zajka-molotok won by resignation"]

1. e4 {[%clk 0:03:00.9]} 1... c5 {[%clk 0:02:55.2]} 2. Nf3 {[%clk 0:02:58.8]}
2... d6 {[%clk 0:02:54.9]} 3. Bb5+ {[%clk 0:02:57.8]} 3... Bd7 {[%clk
0:02:54.7]} 4. Bxd7+ {[%clk 0:02:57]} 4... Qxd7 {[%clk 0:02:55.3]} 5. c4 {[%clk
0:02:56]} 5... e5 {[%clk 0:02:52.7]} 6. O-O {[%clk 0:02:54.9]} 6... Nf6 {[%clk
0:02:51.9]} 7. d3 {[%clk 0:02:53.4]} 7... h6 {[%clk 0:02:52.3]} 8. Nc3 {[%clk
0:02:52.7]} 8... Be7 {[%clk 0:02:51.7]} 9. Ne1 {[%clk 0:02:45.7]} 9... Nc6
{[%clk 0:02:44.2]} 10. f4 {[%clk 0:02:42.2]} 10... Nd4 {[%clk 0:02:40.5]} 11.
Nc2 {[%clk 0:02:35.3]} 11... Nxc2 {[%clk 0:02:24.9]} 12. Qxc2 {[%clk 0:02:36.2]}
12... O-O {[%clk 0:02:25.4]} 13. Be3 {[%clk 0:02:29]} 13... Ng4 {[%clk
0:02:22.5]} 14. Qe2 {[%clk 0:02:10.6]} 14... Nxe3 {[%clk 0:02:17.6]} 15. Qxe3
{[%clk 0:02:11.5]} 15... exf4 {[%clk 0:02:18.2]} 16. Qxf4 {[%clk 0:02:10.7]}
16... Bf6 {[%clk 0:02:14.1]} 17. Qg3 {[%clk 0:02:05.2]} 17... Be5 {[%clk
0:02:08.4]} 18. Qf3 {[%clk 0:02:01.4]} 18... Bxc3 {[%clk 0:02:04.8]} 19. bxc3
{[%clk 0:02:00.9]} 19... b5 {[%clk 0:02:04.2]} 20. cxb5 {[%clk 0:01:55.8]} 20...
Qxb5 {[%clk 0:02:04]} 21. Rab1 {[%clk 0:01:55.2]} 21... Qa6 {[%clk 0:02:02.3]}
22. Rb2 {[%clk 0:01:52.3]} 22... Qa3 {[%clk 0:01:36.2]} 23. Rc2 {[%clk
0:01:39.2]} 23... Rab8 {[%clk 0:01:26.8]} 24. Qg3 {[%clk 0:01:38]} 24... Rb2
{[%clk 0:01:21.3]} 25. Rxb2 {[%clk 0:01:35.2]} 25... Qxb2 {[%clk 0:01:20.8]} 26.
Qxd6 {[%clk 0:01:31.1]} 26... Qxc3 {[%clk 0:01:18.3]} 27. Kh1 {[%clk 0:01:26.6]}
27... Qc2 {[%clk 0:01:12.3]} 28. h3 {[%clk 0:01:21.6]} 28... a5 {[%clk
0:01:04.5]} 29. a3 {[%clk 0:01:16.7]} 29... a4 {[%clk 0:01:03.3]} 30. Rf5 {[%clk
0:01:15]} 30... Qc1+ {[%clk 0:00:58.3]} 31. Kh2 {[%clk 0:01:14.6]} 31... Qxa3
{[%clk 0:00:58.8]} 32. Rxc5 {[%clk 0:01:12.8]} 32... Qb3 {[%clk 0:00:42.4]} 33.
Ra5 {[%clk 0:01:09.6]} 33... Rc8 {[%clk 0:00:27.4]} 34. Qd7 {[%clk 0:00:58.9]}
34... Rc3 {[%clk 0:00:26.6]} 35. Ra8+ {[%clk 0:00:54.2]} 35... Kh7 {[%clk
0:00:26.2]} 36. Qf5+ {[%clk 0:00:52.1]} 36... g6 {[%clk 0:00:24.6]} 37. Qf6
{[%clk 0:00:48.7]} 1-0

[Event "Late-Titled-Tuesday-Blitz-October-03-2023"]
[Site "Chess.com"]
[Date "2023.10.03"]
[Round "5"]
[White "dretch"]
[Black "louis198"]
[Result "1-0"]
[WhiteElo "2844"]
[BlackElo "2622"]
[TimeControl "180+1"]
[EndTime "14:53:08 PDT"]
[Termination "dretch won by resignation"]

1. d4 {[%clk 0:03:00.9]} 1... Nf6 {[%clk 0:02:59]} 2. c4 {[%clk 0:03:01.2]} 2...
d6 {[%clk 0:02:57.4]} 3. Nf3 {[%clk 0:03:00.8]} 3... g6 {[%clk 0:02:57.3]} 4.
Nc3 {[%clk 0:03:01]} 4... Bg7 {[%clk 0:02:57]} 5. e4 {[%clk 0:03:00.5]} 5... O-O
{[%clk 0:02:50.4]} 6. h3 {[%clk 0:03:00.5]} 6... Nbd7 {[%clk 0:02:50.5]} 7. Bg5
{[%clk 0:02:59.8]} 7... c6 {[%clk 0:02:49.3]} 8. Bd3 {[%clk 0:02:58.7]} 8... e5
{[%clk 0:02:42.7]} 9. O-O {[%clk 0:02:55.5]} 9... Qc7 {[%clk 0:02:41.5]} 10. Re1
{[%clk 0:02:51.5]} 10... Nh5 {[%clk 0:02:38.2]} 11. Bf1 {[%clk 0:02:35]} 11...
h6 {[%clk 0:02:36.6]} 12. Be3 {[%clk 0:02:30.8]} 12... Re8 {[%clk 0:02:31.3]}
13. Qd2 {[%clk 0:02:29]} 13... Kh7 {[%clk 0:02:27.9]} 14. Rad1 {[%clk
0:02:23.9]} 14... b6 {[%clk 0:02:25]} 15. d5 {[%clk 0:02:08.7]} 15... c5 {[%clk
0:02:17.1]} 16. g4 {[%clk 0:02:04.2]} 16... Nhf6 {[%clk 0:02:17.1]} 17. g5
{[%clk 0:01:57.1]} 17... Ng8 {[%clk 0:02:16.4]} 18. gxh6 {[%clk 0:01:50.9]}
18... Bxh6 {[%clk 0:02:16.2]} 19. Ng5+ {[%clk 0:01:49.7]} 19... Bxg5 {[%clk
0:02:13.9]} 20. Bxg5 {[%clk 0:01:49.5]} 20... a6 {[%clk 0:02:14.1]} 21. h4
{[%clk 0:01:46.3]} 21... f6 {[%clk 0:02:14.6]} 22. Be3 {[%clk 0:01:45.4]} 22...
Nf8 {[%clk 0:02:14.4]} 23. Be2 {[%clk 0:01:42.9]} 23... f5 {[%clk 0:02:14.2]}
24. f4 {[%clk 0:01:24]} 24... Nf6 {[%clk 0:02:09.1]} 25. fxe5 {[%clk 0:01:17.3]}
25... Rxe5 {[%clk 0:02:09.8]} 26. Bf4 {[%clk 0:01:15.8]} 26... Nxe4 {[%clk
0:02:09.8]} 27. Nxe4 {[%clk 0:01:14.5]} 27... Rxe4 {[%clk 0:02:10.3]} 28. Bf3
{[%clk 0:01:06.7]} 28... Qe7 {[%clk 0:01:59.6]} 29. Bxe4 {[%clk 0:00:56.4]}
29... fxe4 {[%clk 0:02:00.5]} 30. Bg5 {[%clk 0:00:55.4]} 30... Qe8 {[%clk
0:01:58.9]} 31. Qf4 {[%clk 0:00:52.3]} 31... Bf5 {[%clk 0:01:58.7]} 32. Qxd6
{[%clk 0:00:52.3]} 32... Nd7 {[%clk 0:01:54.6]} 33. Rd2 {[%clk 0:00:47.3]} 33...
Qe5 {[%clk 0:01:49.6]} 34. Bf4 {[%clk 0:00:39.9]} 34... Qxd6 {[%clk 0:01:46.4]}
35. Bxd6 {[%clk 0:00:39.4]} 35... b5 {[%clk 0:01:45.2]} 36. b4 {[%clk
0:00:37.3]} 36... Rc8 {[%clk 0:01:42.5]} 37. cxb5 {[%clk 0:00:36]} 37... axb5
{[%clk 0:01:39.3]} 38. bxc5 {[%clk 0:00:35.3]} 38... Nxc5 {[%clk 0:01:38.9]} 39.
Rc2 {[%clk 0:00:28.4]} 39... Nd3 {[%clk 0:01:38.3]} 40. Rxc8 {[%clk 0:00:28]}
40... Bxc8 {[%clk 0:01:39.2]} 41. Rxe4 {[%clk 0:00:27.2]} 41... Kg7 {[%clk
0:01:39.5]} 42. Re3 {[%clk 0:00:20.3]} 42... Bf5 {[%clk 0:01:39.7]} 43. Be7
{[%clk 0:00:18.8]} 43... Kf7 {[%clk 0:01:40]} 44. Bg5 {[%clk 0:00:18]} 44... Nc5
{[%clk 0:01:38.9]} 45. Re7+ {[%clk 0:00:17.8]} 45... Kf8 {[%clk 0:01:39.4]} 46.
Rc7 {[%clk 0:00:18.1]} 46... Ne4 {[%clk 0:01:38.1]} 47. Rb7 {[%clk 0:00:16.1]}
47... Nc3 {[%clk 0:01:30.4]} 48. d6 {[%clk 0:00:16.7]} 48... Ke8 {[%clk
0:01:30.4]} 49. Re7+ {[%clk 0:00:16.4]} 49... Kf8 {[%clk 0:01:31.1]} 50. d7
{[%clk 0:00:16.4]} 1-0

[Event "Late-Titled-Tuesday-Blitz-October-03-2023"]
[Site "Chess.com"]
[Date "2023.10.03"]
[Round "5"]
[White "IamSchrodingersCat"]
[Black "Dhaydon19"]
[Result "0-1"]
[WhiteElo "2521"]
[BlackElo "2749"]
[TimeControl "180+1"]
[EndTime "14:53:09 PDT"]
[Termination "Dhaydon19 won by resignation"]

1. e4 {[%clk 0:03:00.9]} 1... d5 {[%clk 0:02:57.8]} 2. exd5 {[%clk 0:03:00.7]}
2... Qxd5 {[%clk 0:02:58.7]} 3. Nc3 {[%clk 0:03:00.5]} 3... Qd8 {[%clk
0:02:59.2]} 4. Bc4 {[%clk 0:02:59.7]} 4... Nf6 {[%clk 0:02:59.9]} 5. Nf3 {[%clk
0:02:53.6]} 5... e6 {[%clk 0:02:59.4]} 6. d4 {[%clk 0:02:52.5]} 6... Be7 {[%clk
0:02:56.8]} 7. Bg5 {[%clk 0:02:51.1]} 7... a6 {[%clk 0:02:54.9]} 8. Qe2 {[%clk
0:02:47.7]} 8... b5 {[%clk 0:02:54]} 9. Bb3 {[%clk 0:02:46.8]} 9... O-O {[%clk
0:02:51]} 10. O-O {[%clk 0:02:22.5]} 10... Bb7 {[%clk 0:02:50.7]} 11. Rad1
{[%clk 0:02:20.2]} 11... Nbd7 {[%clk 0:02:49.6]} 12. Ne5 {[%clk 0:02:11.9]}
12... Nd5 {[%clk 0:02:25.8]} 13. Bxe7 {[%clk 0:02:05]} 13... Nxc3 {[%clk
0:02:20.2]} 14. bxc3 {[%clk 0:02:01.2]} 14... Qxe7 {[%clk 0:02:19.7]} 15. Nxd7
{[%clk 0:01:34.6]} 15... Qxd7 {[%clk 0:02:17.7]} 16. c4 {[%clk 0:01:33]} 16...
b4 {[%clk 0:02:08.5]} 17. c5 {[%clk 0:01:28.2]} 17... a5 {[%clk 0:02:04.9]} 18.
Bc4 {[%clk 0:01:25.4]} 18... Bc6 {[%clk 0:02:00.1]} 19. Rfe1 {[%clk 0:01:15.2]}
19... Rad8 {[%clk 0:01:58]} 20. f4 {[%clk 0:01:06.3]} 20... Rfe8 {[%clk
0:01:51.5]} 21. Rd2 {[%clk 0:00:53.8]} 21... Bd5 {[%clk 0:01:46.7]} 22. g3
{[%clk 0:00:37.6]} 22... Bb7 {[%clk 0:01:42.2]} 23. Bb5 {[%clk 0:00:32.2]} 23...
Qd5 {[%clk 0:01:26.4]} 24. Qg2 {[%clk 0:00:26.4]} 24... Qxg2+ {[%clk 0:01:24]}
25. Rxg2 {[%clk 0:00:27.3]} 25... Bxg2 {[%clk 0:01:23.4]} 26. Bxe8 {[%clk
0:00:27.9]} 26... Ba8 {[%clk 0:01:04.8]} 27. Ba4 {[%clk 0:00:20.9]} 27... Rxd4
{[%clk 0:01:03.5]} 28. Bb3 {[%clk 0:00:20.9]} 28... Kf8 {[%clk 0:01:00.7]} 29.
Re5 {[%clk 0:00:19.6]} 29... Bc6 {[%clk 0:00:58.2]} 30. f5 {[%clk 0:00:17.8]}
30... a4 {[%clk 0:00:53.1]} 31. fxe6 {[%clk 0:00:14.3]} 31... axb3 {[%clk
0:00:53.1]} 32. e7+ {[%clk 0:00:14.6]} 32... Ke8 {[%clk 0:00:52.8]} 33. cxb3
{[%clk 0:00:15.2]} 33... Rd2 {[%clk 0:00:50.7]} 34. Rh5 {[%clk 0:00:12.3]} 34...
h6 {[%clk 0:00:50]} 35. Rh4 {[%clk 0:00:12.5]} 35... Rg2+ {[%clk 0:00:49.7]} 36.
Kf1 {[%clk 0:00:12]} 36... Rxa2 {[%clk 0:00:49.9]} 37. Rxb4 {[%clk 0:00:12.8]}
37... Rxh2 {[%clk 0:00:49.2]} 0-1

[Event "Late-Titled-Tuesday-Blitz-October-03-2023"]
[Site "Chess.com"]
[Date "2023.10.03"]
[Round "5"]
[White "HamedWafa4"]
[Black "SpeedofLight0"]
[Result "1-0"]
[WhiteElo "2631"]
[BlackElo "3004"]
[TimeControl "180+1"]
[EndTime "14:53:12 PDT"]
[Termination "HamedWafa4 won on time"]

1. e4 {[%clk 0:02:55.2]} 1... Nc6 {[%clk 0:02:55.8]} 2. d4 {[%clk 0:02:55]} 2...
e5 {[%clk 0:02:55.2]} 3. Nf3 {[%clk 0:02:53.6]} 3... exd4 {[%clk 0:02:52.9]} 4.
Nxd4 {[%clk 0:02:53.7]} 4... Nf6 {[%clk 0:02:53.6]} 5. Nxc6 {[%clk 0:02:52.5]}
5... bxc6 {[%clk 0:02:54.5]} 6. e5 {[%clk 0:02:52.9]} 6... Qe7 {[%clk
0:02:54.3]} 7. Qe2 {[%clk 0:02:52.7]} 7... Nd5 {[%clk 0:02:54.1]} 8. h4 {[%clk
0:02:52.7]} 8... a5 {[%clk 0:02:52]} 9. c4 {[%clk 0:02:49.6]} 9... Ba6 {[%clk
0:02:50.3]} 10. Nd2 {[%clk 0:02:46.7]} 10... Nb4 {[%clk 0:02:41.9]} 11. Nf3
{[%clk 0:02:43.7]} 11... c5 {[%clk 0:02:41.7]} 12. Bg5 {[%clk 0:02:39.3]} 12...
Qe6 {[%clk 0:02:39.4]} 13. g3 {[%clk 0:02:37.1]} 13... h6 {[%clk 0:02:30.8]} 14.
Bf4 {[%clk 0:02:35]} 14... Be7 {[%clk 0:02:30.2]} 15. a3 {[%clk 0:02:30.5]}
15... Nc6 {[%clk 0:02:27.7]} 16. Rd1 {[%clk 0:02:30.9]} 16... O-O {[%clk
0:02:25.3]} 17. b3 {[%clk 0:02:26.4]} 17... Rab8 {[%clk 0:02:19.5]} 18. Bh3
{[%clk 0:02:22.2]} 18... f5 {[%clk 0:02:14.2]} 19. exf6 {[%clk 0:02:14.5]} 19...
Qxe2+ {[%clk 0:02:15.1]} 20. Kxe2 {[%clk 0:02:14.8]} 20... Bxf6 {[%clk
0:02:12.7]} 21. Bxd7 {[%clk 0:02:15.1]} 21... Nd4+ {[%clk 0:00:52.4]} 22. Nxd4
{[%clk 0:02:13.5]} 22... cxd4 {[%clk 0:00:51.8]} 23. Rd3 {[%clk 0:02:04.2]}
23... Rb7 {[%clk 0:00:39.2]} 24. Bc6 {[%clk 0:02:00.9]} 24... Rb6 {[%clk
0:00:37.9]} 25. Bd5+ {[%clk 0:02:01.2]} 25... Kh8 {[%clk 0:00:37.2]} 26. Bxc7
{[%clk 0:02:01.6]} 26... Rb7 {[%clk 0:00:13.1]} 27. Bxa5 {[%clk 0:01:58.8]}
27... Re7+ {[%clk 0:00:10]} 28. Kd1 {[%clk 0:01:59]} 28... Re5 {[%clk
0:00:09.4]} 29. Rf3 {[%clk 0:01:50.6]} 29... Rfe8 {[%clk 0:00:05.7]} 30. Re1
{[%clk 0:01:50.7]} 30... Bc8 {[%clk 0:00:03]} 31. Rxe5 {[%clk 0:01:49.9]} 31...
Bxe5 {[%clk 0:00:03.2]} 32. Bb4 {[%clk 0:01:46.8]} 32... Bg4 {[%clk 0:00:03.1]}
33. Kd2 {[%clk 0:01:46.4]} 33... Bxf3 {[%clk 0:00:03]} 34. Bxf3 {[%clk
0:01:47.3]} 34... Re6 {[%clk 0:00:02.5]} 35. Bd5 {[%clk 0:01:45.8]} 35... Rf6
{[%clk 0:00:03]} 36. f4 {[%clk 0:01:45.8]} 36... Bc7 {[%clk 0:00:03.8]} 37. Kd3
{[%clk 0:01:42.4]} 37... Rg6 {[%clk 0:00:03.9]} 38. Be1 {[%clk 0:01:43.1]} 38...
Ra6 {[%clk 0:00:02.6]} 39. a4 {[%clk 0:01:42.8]} 39... Bb6 {[%clk 0:00:03.2]}
40. a5 {[%clk 0:01:41.4]} 40... Bxa5 {[%clk 0:00:02.6]} 41. Bxa5 {[%clk
0:01:42.3]} 41... Rxa5 {[%clk 0:00:03.5]} 42. Kxd4 {[%clk 0:01:43.1]} 42... g5
{[%clk 0:00:03.4]} 43. hxg5 {[%clk 0:01:43.1]} 43... hxg5 {[%clk 0:00:04.3]} 44.
f5 {[%clk 0:01:42.1]} 44... Kg7 {[%clk 0:00:04.5]} 45. g4 {[%clk 0:01:42.7]}
45... Kf6 {[%clk 0:00:05]} 46. b4 {[%clk 0:01:43.2]} 46... Ra1 {[%clk
0:00:04.7]} 47. b5 {[%clk 0:01:43.8]} 47... Ke7 {[%clk 0:00:04.9]} 48. b6 {[%clk
0:01:43.3]} 48... Kd7 {[%clk 0:00:03.4]} 49. f6 {[%clk 0:01:43.2]} 49... Rb1
{[%clk 0:00:02.7]} 50. f7 {[%clk 0:01:43]} 50... Ke7 {[%clk 0:00:02.2]} 51. b7
{[%clk 0:01:43.4]} 51... Kf8 {[%clk 0:00:01.4]} 52. Kc5 {[%clk 0:01:43.8]} 52...
Ke7 {[%clk 0:00:01.4]} 53. Kc6 {[%clk 0:01:44.3]} 53... Rb2 {[%clk 0:00:01.2]}
54. Kc7 {[%clk 0:01:44.5]} 54... Kf6 {[%clk 0:00:01.2]} 55. b8=Q {[%clk
0:01:44.8]} 1-0

[Event "Late-Titled-Tuesday-Blitz-October-03-2023"]
[Site "Chess.com"]
[Date "2023.10.03"]
[Round "5"]
[White "FairChess_on_YouTube"]
[Black "dedpihto_v_kozhanom_palto"]
[Result "1-0"]
[WhiteElo "3038"]
[BlackElo "2707"]
[TimeControl "180+1"]
[EndTime "14:53:18 PDT"]
[Termination "FairChess_on_YouTube won by checkmate"]

1. c4 {[%clk 0:03:00.9]} 1... g6 {[%clk 0:02:57.4]} 2. e4 {[%clk 0:02:59.2]}
2... Bg7 {[%clk 0:02:57.9]} 3. d4 {[%clk 0:02:59.3]} 3... d6 {[%clk 0:02:58]} 4.
Nc3 {[%clk 0:02:59.4]} 4... Nc6 {[%clk 0:02:57.9]} 5. Be3 {[%clk 0:02:58]} 5...
e5 {[%clk 0:02:57.7]} 6. d5 {[%clk 0:02:58.5]} 6... Nce7 {[%clk 0:02:57.4]} 7.
f3 {[%clk 0:02:56.5]} 7... f5 {[%clk 0:02:57.6]} 8. Qd2 {[%clk 0:02:56.4]} 8...
Nf6 {[%clk 0:02:56.9]} 9. h3 {[%clk 0:02:55.7]} 9... O-O {[%clk 0:02:56.3]} 10.
O-O-O {[%clk 0:02:55.2]} 10... a6 {[%clk 0:02:52.8]} 11. g4 {[%clk 0:02:51.9]}
11... Bd7 {[%clk 0:02:38.3]} 12. Bd3 {[%clk 0:02:35.7]} 12... b5 {[%clk
0:02:36.7]} 13. c5 {[%clk 0:02:35.7]} 13... b4 {[%clk 0:02:34.3]} 14. Nce2
{[%clk 0:02:35.2]} 14... Bb5 {[%clk 0:02:15.6]} 15. Kb1 {[%clk 0:02:27.7]} 15...
Qb8 {[%clk 0:01:41.7]} 16. Nc1 {[%clk 0:02:22.7]} 16... a5 {[%clk 0:01:36.4]}
17. Nge2 {[%clk 0:02:21.8]} 17... Bxd3+ {[%clk 0:01:31.6]} 18. Qxd3 {[%clk
0:02:20.7]} 18... a4 {[%clk 0:01:31.9]} 19. c6 {[%clk 0:02:12.6]} 19... a3
{[%clk 0:01:23.2]} 20. b3 {[%clk 0:02:11.7]} 20... Ra5 {[%clk 0:01:18.1]} 21.
Qc4 {[%clk 0:02:09.4]} 21... Kh8 {[%clk 0:01:07.9]} 22. g5 {[%clk 0:02:04.5]}
22... Nh5 {[%clk 0:01:06.6]} 23. Nd3 {[%clk 0:02:04.3]} 23... Rb5 {[%clk
0:00:54.2]} 24. Rhf1 {[%clk 0:02:01.7]} 24... Rf7 {[%clk 0:00:36.6]} 25. h4
{[%clk 0:02:01.7]} 25... Rf8 {[%clk 0:00:36.6]} 26. Bd2 {[%clk 0:02:00.4]} 26...
Nf4 {[%clk 0:00:29.8]} 27. Nexf4 {[%clk 0:01:52.8]} 27... exf4 {[%clk
0:00:30.7]} 28. Bxb4 {[%clk 0:01:51.9]} 28... fxe4 {[%clk 0:00:27.2]} 29. fxe4
{[%clk 0:01:51.4]} 29... f3 {[%clk 0:00:27.7]} 30. Bxa3 {[%clk 0:01:47.5]} 30...
f2 {[%clk 0:00:21.7]} 31. Bb2 {[%clk 0:01:38.1]} 31... Bxb2 {[%clk 0:00:10.9]}
32. Kxb2 {[%clk 0:01:39]} 32... Ra5 {[%clk 0:00:11.5]} 33. Qd4+ {[%clk
0:01:31.8]} 33... Kg8 {[%clk 0:00:11.2]} 34. Rd2 {[%clk 0:01:31.7]} 34... Qa8
{[%clk 0:00:10.8]} 35. Nb4 {[%clk 0:01:23.7]} 35... Rb5 {[%clk 0:00:04.2]} 36.
Rdxf2 {[%clk 0:01:21.4]} 36... Rxf2+ {[%clk 0:00:04.3]} 37. Qxf2 {[%clk
0:01:17.8]} 37... Qe8 {[%clk 0:00:04.7]} 38. a3 {[%clk 0:01:12.9]} 38... Rb8
{[%clk 0:00:03.4]} 39. Qf6 {[%clk 0:01:11.1]} 39... Nc8 {[%clk 0:00:02.9]} 40.
Qe6+ {[%clk 0:01:10.4]} 40... Qxe6 {[%clk 0:00:02.4]} 41. dxe6 {[%clk
0:01:10.7]} 41... Ne7 {[%clk 0:00:01.8]} 42. Rf7 {[%clk 0:01:10.2]} 42... Re8
{[%clk 0:00:02.7]} 43. a4 {[%clk 0:01:09.9]} 43... Nc8 {[%clk 0:00:02]} 44. Rxc7
{[%clk 0:01:08.2]} 44... h5 {[%clk 0:00:02.9]} 45. Nd5 {[%clk 0:01:07.9]} 45...
Na7 {[%clk 0:00:01.5]} 46. Nf6+ {[%clk 0:01:08]} 46... Kh8 {[%clk 0:00:02.3]}
47. Rh7# {[%clk 0:01:07.9]} 1-0

[Event "Late-Titled-Tuesday-Blitz-October-03-2023"]
[Site "Chess.com"]
[Date "2023.10.03"]
[Round "5"]
[White "matagordo"]
[Black "Sjakkerntobi"]
[Result "0-1"]
[WhiteElo "2232"]
[BlackElo "2511"]
[TimeControl "180+1"]
[EndTime "14:53:18 PDT"]
[Termination "Sjakkerntobi won by resignation"]

1. d4 {[%clk 0:02:54.1]} 1... d5 {[%clk 0:02:59.4]} 2. Bf4 {[%clk 0:02:53]} 2...
Nf6 {[%clk 0:02:59]} 3. e3 {[%clk 0:02:53.5]} 3... c5 {[%clk 0:02:59.3]} 4. Nf3
{[%clk 0:02:53.9]} 4... e6 {[%clk 0:02:59.8]} 5. Nbd2 {[%clk 0:02:53.8]} 5...
Bd6 {[%clk 0:03:00]} 6. Ne5 {[%clk 0:02:54]} 6... O-O {[%clk 0:02:59.8]} 7. c3
{[%clk 0:02:52.7]} 7... Nc6 {[%clk 0:03:00.3]} 8. Bd3 {[%clk 0:02:52.5]} 8...
Qc7 {[%clk 0:03:00.2]} 9. Ndf3 {[%clk 0:02:52.9]} 9... Ne4 {[%clk 0:02:53.8]}
10. O-O {[%clk 0:02:46.4]} 10... Ne7 {[%clk 0:02:46.9]} 11. dxc5 {[%clk
0:02:31.2]} 11... Qxc5 {[%clk 0:02:43]} 12. Qc2 {[%clk 0:02:12.2]} 12... f6
{[%clk 0:02:09.4]} 13. Ng4 {[%clk 0:01:57]} 13... e5 {[%clk 0:02:09]} 14. Nh6+
{[%clk 0:01:41.6]} 14... gxh6 {[%clk 0:02:05.4]} 15. Bxh6 {[%clk 0:01:41.8]}
15... Rf7 {[%clk 0:02:05.5]} 16. Bxe4 {[%clk 0:01:40.9]} 16... dxe4 {[%clk
0:02:06]} 17. Qxe4 {[%clk 0:01:41.8]} 17... Bf5 {[%clk 0:02:05.5]} 18. Qxb7
{[%clk 0:01:36.9]} 18... Rb8 {[%clk 0:02:05.8]} 19. Qa6 {[%clk 0:01:30.6]} 19...
Qb6 {[%clk 0:01:58]} 20. Qa4 {[%clk 0:01:25.7]} 20... Kh8 {[%clk 0:01:51.8]} 21.
Rad1 {[%clk 0:01:23.3]} 21... Rg8 {[%clk 0:01:51.3]} 22. e4 {[%clk 0:01:10.8]}
22... Bg4 {[%clk 0:01:50.5]} 23. Nd2 {[%clk 0:00:52.4]} 23... Bxd1 {[%clk
0:01:26.9]} 24. Rxd1 {[%clk 0:00:53.3]} 24... Bc5 {[%clk 0:01:26.9]} 25. b4
{[%clk 0:00:45.9]} 25... Bxf2+ {[%clk 0:01:26.1]} 26. Kh1 {[%clk 0:00:46.6]}
26... Qc6 {[%clk 0:01:19.8]} 27. Qb3 {[%clk 0:00:43.8]} 27... Qe8 {[%clk
0:01:13.7]} 28. Nc4 {[%clk 0:00:30.9]} 28... Nc8 {[%clk 0:01:11.1]} 29. Na5
{[%clk 0:00:25.7]} 29... Rd7 {[%clk 0:01:05.9]} 30. Rf1 {[%clk 0:00:24.5]} 30...
Bh4 {[%clk 0:01:05.1]} 31. Qc4 {[%clk 0:00:17.6]} 31... Nb6 {[%clk 0:00:57.3]}
32. Qe2 {[%clk 0:00:15.3]} 32... Qg6 {[%clk 0:00:55.7]} 33. Nc6 {[%clk
0:00:12.4]} 33... Qxh6 {[%clk 0:00:51.9]} 34. c4 {[%clk 0:00:08.9]} 34... Rd2
{[%clk 0:00:50.7]} 35. Qf3 {[%clk 0:00:05.1]} 35... Rgxg2 {[%clk 0:00:48.3]} 36.
Qxg2 {[%clk 0:00:02.5]} 36... Rxg2 {[%clk 0:00:49.2]} 37. Kxg2 {[%clk
0:00:03.4]} 37... Nxc4 {[%clk 0:00:49]} 38. Ne7 {[%clk 0:00:03.4]} 38... Ne3+
{[%clk 0:00:47.9]} 39. Kf3 {[%clk 0:00:03.4]} 39... Qf4+ {[%clk 0:00:47.4]} 0-1

[Event "Late-Titled-Tuesday-Blitz-October-03-2023"]
[Site "Chess.com"]
[Date "2023.10.03"]
[Round "5"]
[White "venturov"]
[Black "The_Princess_Moon"]
[Result "1-0"]
[WhiteElo "2491"]
[BlackElo "2290"]
[TimeControl "180+1"]
[EndTime "14:53:19 PDT"]
[Termination "venturov won by resignation"]

1. e4 {[%clk 0:03:00.9]} 1... c5 {[%clk 0:03:00.9]} 2. Nf3 {[%clk 0:03:00.6]}
2... a6 {[%clk 0:03:01]} 3. d4 {[%clk 0:02:57.9]} 3... cxd4 {[%clk 0:03:01.9]}
4. c3 {[%clk 0:02:58.6]} 4... dxc3 {[%clk 0:03:00.1]} 5. Bc4 {[%clk 0:02:58.8]}
5... e6 {[%clk 0:02:57.4]} 6. Nxc3 {[%clk 0:02:58.7]} 6... Ne7 {[%clk
0:02:55.9]} 7. O-O {[%clk 0:02:57.9]} 7... Ng6 {[%clk 0:02:55.5]} 8. Ng5 {[%clk
0:02:55.7]} 8... Be7 {[%clk 0:02:50.3]} 9. Qh5 {[%clk 0:02:48.7]} 9... Bxg5
{[%clk 0:02:40.3]} 10. Bxg5 {[%clk 0:02:47.8]} 10... Qa5 {[%clk 0:02:27.9]} 11.
Be2 {[%clk 0:01:50.8]} 11... h6 {[%clk 0:02:19.3]} 12. Be3 {[%clk 0:01:51.1]}
12... Qxh5 {[%clk 0:02:05.3]} 13. Bxh5 {[%clk 0:01:52]} 13... O-O {[%clk
0:01:50.4]} 14. f4 {[%clk 0:01:50.3]} 14... Nc6 {[%clk 0:01:43.8]} 15. Bc5
{[%clk 0:01:40.7]} 15... Rd8 {[%clk 0:01:11.5]} 16. Bb6 {[%clk 0:01:31.7]} 16...
Re8 {[%clk 0:01:03.7]} 17. Rad1 {[%clk 0:01:31.7]} 17... d5 {[%clk 0:00:56.6]}
18. exd5 {[%clk 0:01:18.7]} 18... exd5 {[%clk 0:00:55.2]} 19. Nxd5 {[%clk
0:01:19.6]} 19... Rb8 {[%clk 0:00:25.4]} 20. Bc7 {[%clk 0:01:09.1]} 20... Ra8
{[%clk 0:00:18.3]} 21. Nb6 {[%clk 0:01:08]} 21... Be6 {[%clk 0:00:13.9]} 22.
Nxa8 {[%clk 0:01:06.4]} 22... Rxa8 {[%clk 0:00:14.8]} 23. f5 {[%clk 0:01:06.7]}
23... Bc4 {[%clk 0:00:10.4]} 24. fxg6 {[%clk 0:01:02.5]} 24... fxg6 {[%clk
0:00:10.8]} 25. Rf4 {[%clk 0:00:56.4]} 25... Bxa2 {[%clk 0:00:03.7]} 26. Bxg6
{[%clk 0:00:53.8]} 26... Rc8 {[%clk 0:00:04.6]} 27. Bb6 {[%clk 0:00:41.8]} 27...
Ne5 {[%clk 0:00:03.9]} 28. Rd8+ {[%clk 0:00:38.7]} 28... Rxd8 {[%clk 0:00:03.4]}
29. Bxd8 {[%clk 0:00:39.6]} 29... Nxg6 {[%clk 0:00:03.5]} 30. Rb4 {[%clk
0:00:38.3]} 30... Kh7 {[%clk 0:00:04]} 31. Rxb7 {[%clk 0:00:38.2]} 31... Bd5
{[%clk 0:00:04.6]} 32. Ra7 {[%clk 0:00:38]} 32... Bc4 {[%clk 0:00:04.9]} 33. Bf6
{[%clk 0:00:37.5]} 33... Nf4 {[%clk 0:00:02.7]} 34. Rxg7+ {[%clk 0:00:37.2]}
34... Kh8 {[%clk 0:00:03]} 35. Rg4+ {[%clk 0:00:36.9]} 1-0